[Event "December 5 Early 2023"]
[Site "https://www.chess.com"]
[Date "2023.12.05"]
[Round "11"]
[White "Nguyen, Quoc Hy"]
[Black "Svane, Rasmus"]
[Result "1/2-1/2"]
[Board "17"]
[TimeControl "180+1"]
[WhiteFideId "12410853"]
[BlackFideId "4657101"]
[WhiteElo "2819"]
[BlackElo "2935"]
[WhiteTeam "VIE"]
[BlackTeam "GER"]
[WhiteClock "0:00:05"]
[BlackClock "0:00:10"]

1. d4 {[%clk 0:03:00]}  d5 {[%clk 0:02:58]} 2. c4 {[%clk 0:03:00]}  e6 {[%clk 0:02:58]} 3. Nc3 {[%clk 0:03:00]}  a6 {[%clk 0:02:57]} 4. cxd5 {[%clk 0:03:00]}  exd5 {[%clk 0:02:58]} 5. Bf4 {[%clk 0:03:00]}  Nf6 {[%clk 0:02:58]} 6. e3 {[%clk 0:02:59]}  Bd6 {[%clk 0:02:58]} 7. Be5 {[%clk 0:02:54]}  c6 {[%clk 0:02:55]} 8. Bd3 {[%clk 0:02:48]}  Qe7 {[%clk 0:02:50]} 9. Bxd6 {[%clk 0:02:33]}  Qxd6 {[%clk 0:02:51]} 10. Nf3 {[%clk 0:02:34]}  Bg4 {[%clk 0:02:49]} 11. h3 {[%clk 0:02:34]}  Bxf3 {[%clk 0:02:48]} 12. gxf3 {[%clk 0:02:33]}  O-O {[%clk 0:02:47]} 13. Qc2 {[%clk 0:02:30]}  Nbd7 {[%clk 0:02:47]} 14. Bf5 {[%clk 0:02:28]}  Nb6 {[%clk 0:02:39]} 15. O-O-O {[%clk 0:02:23]}  Kh8 {[%clk 0:02:35]} 16. Rhg1 {[%clk 0:02:23]}  g6 {[%clk 0:02:34]} 17. Bd3 {[%clk 0:02:19]}  Rac8 {[%clk 0:02:34]} 18. Kb1 {[%clk 0:02:16]}  c5 {[%clk 0:02:33]} 19. dxc5 {[%clk 0:02:15]}  Rxc5 {[%clk 0:02:34]} 20. Qb3 {[%clk 0:02:11]}  Rfc8 {[%clk 0:02:28]} 21. Qb4 {[%clk 0:02:04]}  Nbd7 {[%clk 0:02:06]} 22. f4 {[%clk 0:02:02]}  R5c6 {[%clk 0:01:48]} 23. Qd4 {[%clk 0:01:57]}  Qc5 {[%clk 0:01:32]} 24. Ne2 {[%clk 0:01:52]}  Qxd4 {[%clk 0:01:29]} 25. Nxd4 {[%clk 0:01:53]}  Rc5 {[%clk 0:01:29]} 26. h4 {[%clk 0:01:43]}  Kg7 {[%clk 0:01:29]} 27. Be2 {[%clk 0:01:37]}  Ne4 {[%clk 0:01:27]} 28. f3 {[%clk 0:01:33]}  Nef6 {[%clk 0:01:24]} 29. Bd3 {[%clk 0:01:26]}  Re8 {[%clk 0:01:22]} 30. Rde1 {[%clk 0:01:21]}  Nb6 {[%clk 0:01:19]} 31. f5 {[%clk 0:01:15]}  Rc7 {[%clk 0:01:13]} 32. Rg5 {[%clk 0:01:06]}  Kf8 {[%clk 0:01:12]} 33. Nc2 {[%clk 0:00:54]}  Nbd7 {[%clk 0:01:07]} 34. Nd4 {[%clk 0:00:52]}  Ne5 {[%clk 0:01:03]} 35. Bf1 {[%clk 0:00:45]}  Rce7 {[%clk 0:01:02]} 36. fxg6 {[%clk 0:00:44]}  hxg6 {[%clk 0:01:02]} 37. Bg2 {[%clk 0:00:36]}  Ned7 {[%clk 0:01:01]} 38. Nc2 {[%clk 0:00:36]}  Nb6 {[%clk 0:00:53]} 39. f4 {[%clk 0:00:34]}  Nh7 {[%clk 0:00:29]} 40. Rg3 {[%clk 0:00:32]}  Nf6 {[%clk 0:00:29]} 41. Rg5 {[%clk 0:00:32]}  Kg7 {[%clk 0:00:23]} 42. f5 {[%clk 0:00:29]}  Re5 {[%clk 0:00:22]} 43. fxg6 {[%clk 0:00:28]}  fxg6 {[%clk 0:00:22]} 44. Rg3 {[%clk 0:00:25]}  Nc4 {[%clk 0:00:22]} 45. b3 {[%clk 0:00:23]}  Nd6 {[%clk 0:00:22]} 46. Nd4 {[%clk 0:00:21]}  Kf7 {[%clk 0:00:15]} 47. Rf1 {[%clk 0:00:19]}  Rxe3 {[%clk 0:00:11]} 48. Rxe3 {[%clk 0:00:19]}  Rxe3 {[%clk 0:00:12]} 49. Bxd5+ {[%clk 0:00:19]}  Ke7 {[%clk 0:00:12]} 50. Bh1 {[%clk 0:00:16]}  Rh3 {[%clk 0:00:11]} 51. Nf3 {[%clk 0:00:16]}  Nf5 {[%clk 0:00:09]} 52. Re1+ {[%clk 0:00:16]}  Kd6 {[%clk 0:00:09]} 53. Ng5 {[%clk 0:00:13]}  Rxh4 {[%clk 0:00:09]} 54. Bxb7 {[%clk 0:00:14]}  Nd7 {[%clk 0:00:06]} 55. Bxa6 {[%clk 0:00:13]}  Nc5 {[%clk 0:00:06]} 56. Bc4 {[%clk 0:00:13]}  Rh2 {[%clk 0:00:06]} 57. Nf7+ {[%clk 0:00:13]}  Kc7 {[%clk 0:00:05]} 58. a4 {[%clk 0:00:10]}  Nd6 {[%clk 0:00:04]} 59. Re7+ {[%clk 0:00:09]}  Kc6 {[%clk 0:00:04]} 60. Nxd6 {[%clk 0:00:05]}  Kxd6 {[%clk 0:00:04]} 61. Rg7 {[%clk 0:00:05]}  Rg2 {[%clk 0:00:04]} 62. a5 {[%clk 0:00:05]}  g5 {[%clk 0:00:04]} 63. a6 {[%clk 0:00:06]}  Rg1+ {[%clk 0:00:03]} 64. Kb2 {[%clk 0:00:06]}  Rg2+ {[%clk 0:00:04]} 65. Ka3 {[%clk 0:00:04]}  Rg1 {[%clk 0:00:04]} 66. a7 {[%clk 0:00:05]}  Ra1+ {[%clk 0:00:02]} 67. Kb2 {[%clk 0:00:05]}  Ra5 {[%clk 0:00:02]} 68. b4 {[%clk 0:00:06]}  Ra4 {[%clk 0:00:01]} 69. bxc5+ {[%clk 0:00:06]}  Kxc5 {[%clk 0:00:01]} 70. Bb3 {[%clk 0:00:05]}  Ra6 {[%clk 0:00:01]} 71. Rxg5+ {[%clk 0:00:03]}  Kb6 {[%clk 0:00:01]} 72. Rg6+ {[%clk 0:00:04]}  Kxa7 {[%clk 0:00:01]} 73. Rg7+ {[%clk 0:00:05]}  Kb6 {[%clk 0:00:02]} 74. Rg4 {[%clk 0:00:05]}  Ra7 {[%clk 0:00:02]} 75. Rb4+ {[%clk 0:00:06]}  Kc5 {[%clk 0:00:03]} 76. Rc4+ {[%clk 0:00:06]}  Kd6 {[%clk 0:00:03]} 77. Rd4+ {[%clk 0:00:06]}  Kc5 {[%clk 0:00:03]} 78. Kc3 {[%clk 0:00:07]}  Rc7 {[%clk 0:00:03]} 79. Rd5+ {[%clk 0:00:07]}  Kc6 {[%clk 0:00:04]} 80. Kd4 {[%clk 0:00:07]}  Re7 {[%clk 0:00:03]} 81. Bc4 {[%clk 0:00:05]}  Kc7 {[%clk 0:00:04]} 82. Kc5 {[%clk 0:00:05]}  Rd7 {[%clk 0:00:04]} 83. Rh5 {[%clk 0:00:04]}  Re7 {[%clk 0:00:04]} 84. Bd5 {[%clk 0:00:04]}  Kd7 {[%clk 0:00:05]} 85. Rh6 {[%clk 0:00:04]}  Kc7 {[%clk 0:00:05]} 86. Ra6 {[%clk 0:00:04]}  Rd7 {[%clk 0:00:05]} 87. Ra7+ {[%clk 0:00:04]}  Kd8 {[%clk 0:00:05]} 88. Ra8+ {[%clk 0:00:04]}  Kc7 {[%clk 0:00:06]} 89. Bc6 {[%clk 0:00:05]}  Re7 {[%clk 0:00:05]} 90. Ra7+ {[%clk 0:00:05]}  Kd8 {[%clk 0:00:06]} 91. Ra1 {[%clk 0:00:05]}  Kc7 {[%clk 0:00:06]} 92. Bd5 {[%clk 0:00:06]}  Rd7 {[%clk 0:00:06]} 93. Rb1 {[%clk 0:00:06]}  Re7 {[%clk 0:00:06]} 94. Rb7+ {[%clk 0:00:06]}  Kd8 {[%clk 0:00:06]} 95. Rb6 {[%clk 0:00:07]}  Kc7 {[%clk 0:00:07]} 96. Rc6+ {[%clk 0:00:07]}  Kd7 {[%clk 0:00:07]} 97. Ra6 {[%clk 0:00:06]}  Kc7 {[%clk 0:00:07]} 98. Bc6 {[%clk 0:00:06]}  Re5+ {[%clk 0:00:07]} 99. Bd5 {[%clk 0:00:07]}  Re7 {[%clk 0:00:08]} 100. Rb6 {[%clk 0:00:06]}  Kd7 {[%clk 0:00:08]} 101. Rb8 {[%clk 0:00:05]}  Kc7 {[%clk 0:00:08]} 102. Rb7+ {[%clk 0:00:06]}  Kd8 {[%clk 0:00:08]} 103. Rb1 {[%clk 0:00:06]}  Kc7 {[%clk 0:00:09]} 104. Rc1 {[%clk 0:00:06]}  Kd7 {[%clk 0:00:09]} 105. Kd4 {[%clk 0:00:05]}  Kd6 {[%clk 0:00:09]} 106. Rc6+ {[%clk 0:00:05]}  Kd7 {[%clk 0:00:10]} 107. Kc5 {[%clk 0:00:06]}  Kd8 {[%clk 0:00:09]} 108. Be6 {[%clk 0:00:06]}  Rc7 {[%clk 0:00:09]} 109. Rxc7 {[%clk 0:00:05]}  Kxc7 {[%clk 0:00:10]} 1/2-1/2

[Event "December 5 Early 2023"]
[Site "https://www.chess.com"]
[Date "2023.12.05"]
[Round "11"]
[White "Maksimovic, Bojan"]
[Black "Yeremyan, Alen"]
[Result "1/2-1/2"]
[Board "19"]
[TimeControl "180+1"]
[WhiteFideId "14408120"]
[BlackFideId "13308998"]
[WhiteElo "2929"]
[BlackElo "2803"]
[WhiteTeam "BIH"]
[BlackTeam "ARM"]
[WhiteClock "0:00:08"]
[BlackClock "0:01:04"]

1. e4 {[%clk 0:03:00]}  Nf6 {[%clk 0:02:59]} 2. e5 {[%clk 0:03:00]}  Nd5 {[%clk 0:03:00]} 3. Nf3 {[%clk 0:03:00]}  d6 {[%clk 0:03:00]} 4. d4 {[%clk 0:03:01]}  Bg4 {[%clk 0:03:00]} 5. Be2 {[%clk 0:02:57]}  c6 {[%clk 0:03:01]} 6. exd6 {[%clk 0:02:57]}  exd6 {[%clk 0:03:01]} 7. O-O {[%clk 0:02:57]}  Be7 {[%clk 0:02:59]} 8. Nbd2 {[%clk 0:02:55]}  O-O {[%clk 0:02:58]} 9. Ne4 {[%clk 0:02:55]}  Nf6 {[%clk 0:02:58]} 10. Ng3 {[%clk 0:02:55]}  Nbd7 {[%clk 0:02:57]} 11. h3 {[%clk 0:02:55]}  Bxf3 {[%clk 0:02:57]} 12. Bxf3 {[%clk 0:02:56]}  Re8 {[%clk 0:02:58]} 13. Re1 {[%clk 0:02:55]}  d5 {[%clk 0:02:58]} 14. c3 {[%clk 0:02:54]}  Bf8 {[%clk 0:02:57]} 15. Be3 {[%clk 0:02:53]}  g6 {[%clk 0:02:55]} 16. Ne2 {[%clk 0:02:45]}  Bg7 {[%clk 0:02:55]} 17. Nf4 {[%clk 0:02:46]}  Nf8 {[%clk 0:02:55]} 18. Nd3 {[%clk 0:02:44]}  Ne6 {[%clk 0:02:55]} 19. Qc2 {[%clk 0:02:44]}  Qd6 {[%clk 0:02:45]} 20. Re2 {[%clk 0:02:44]}  Re7 {[%clk 0:02:44]} 21. Rae1 {[%clk 0:02:44]}  Rae8 {[%clk 0:02:45]} 22. Bc1 {[%clk 0:02:44]}  b6 {[%clk 0:02:38]} 23. a4 {[%clk 0:02:44]}  c5 {[%clk 0:02:38]} 24. dxc5 {[%clk 0:02:37]}  bxc5 {[%clk 0:02:39]} 25. b3 {[%clk 0:02:29]}  c4 {[%clk 0:02:31]} 26. bxc4 {[%clk 0:02:26]}  dxc4 {[%clk 0:02:29]} 27. Ne5 {[%clk 0:02:27]}  Qc5 {[%clk 0:02:19]} 28. Nc6 {[%clk 0:02:17]}  Rd7 {[%clk 0:02:15]} 29. Be3 {[%clk 0:02:13]}  Qa3 {[%clk 0:02:12]} 30. Nxa7 {[%clk 0:02:09]}  Nd5 {[%clk 0:01:58]} 31. Nb5 {[%clk 0:02:03]}  Qb3 {[%clk 0:01:54]} 32. Bd4 {[%clk 0:01:28]}  Red8 {[%clk 0:01:39]} 33. Bxg7 {[%clk 0:01:25]}  Kxg7 {[%clk 0:01:40]} 34. Ra1 {[%clk 0:00:58]}  Ndf4 {[%clk 0:01:38]} 35. Qxb3 {[%clk 0:00:48]}  Nxe2+ {[%clk 0:01:37]} 36. Bxe2 {[%clk 0:00:34]}  cxb3 {[%clk 0:01:36]} 37. Rb1 {[%clk 0:00:34]}  Nc5 {[%clk 0:01:37]} 38. Nd4 {[%clk 0:00:34]}  Nxa4 {[%clk 0:01:35]} 39. Rxb3 {[%clk 0:00:33]}  Nxc3 {[%clk 0:01:34]} 40. Ne6+ {[%clk 0:00:30]}  fxe6 {[%clk 0:01:30]} 41. Rxc3 {[%clk 0:00:31]}  e5 {[%clk 0:01:28]} 42. Re3 {[%clk 0:00:31]}  Kf6 {[%clk 0:01:27]} 43. g3 {[%clk 0:00:29]}  h5 {[%clk 0:01:26]} 44. Kg2 {[%clk 0:00:29]}  Rd2 {[%clk 0:01:25]} 45. Bf3 {[%clk 0:00:27]}  Rb8 {[%clk 0:01:24]} 46. Be4 {[%clk 0:00:27]}  Rbb2 {[%clk 0:01:25]} 47. Rf3+ {[%clk 0:00:27]}  Kg7 {[%clk 0:01:26]} 48. h4 {[%clk 0:00:21]}  Re2 {[%clk 0:01:25]} 49. Bd5 {[%clk 0:00:22]}  e4 {[%clk 0:01:21]} 50. Rf7+ {[%clk 0:00:22]}  Kh6 {[%clk 0:01:21]} 51. g4 {[%clk 0:00:05]}  hxg4 {[%clk 0:01:19]} 52. Kg3 {[%clk 0:00:06]}  e3 {[%clk 0:01:18]} 53. fxe3 {[%clk 0:00:06]}  Rxe3+ {[%clk 0:01:19]} 54. Kxg4 {[%clk 0:00:07]}  Rb4+ {[%clk 0:01:16]} 55. Rf4 {[%clk 0:00:07]}  Rxf4+ {[%clk 0:01:15]} 56. Kxf4 {[%clk 0:00:08]}  Rd3 {[%clk 0:01:15]} 57. Bf3 {[%clk 0:00:09]}  Rd4+ {[%clk 0:01:16]} 58. Kg3 {[%clk 0:00:09]}  Kg7 {[%clk 0:01:15]} 59. Bb7 {[%clk 0:00:07]}  Kf6 {[%clk 0:01:15]} 60. Bc8 {[%clk 0:00:08]}  Rc4 {[%clk 0:01:14]} 61. Bd7 {[%clk 0:00:08]}  Rd4 {[%clk 0:01:14]} 62. Bc8 {[%clk 0:00:09]}  Ke5 {[%clk 0:01:14]} 63. Bb7 {[%clk 0:00:06]}  Rb4 {[%clk 0:01:12]} 64. Bc8 {[%clk 0:00:06]}  Rb1 {[%clk 0:01:12]} 65. Kg4 {[%clk 0:00:06]}  Rg1+ {[%clk 0:01:11]} 66. Kf3 {[%clk 0:00:07]}  Kf6 {[%clk 0:01:08]} 67. Kf4 {[%clk 0:00:06]}  Kg7 {[%clk 0:01:08]} 68. Bg4 {[%clk 0:00:06]}  Kh6 {[%clk 0:01:09]} 69. Bf3 {[%clk 0:00:06]}  Rf1 {[%clk 0:01:05]} 70. Kg3 {[%clk 0:00:07]}  Rb1 {[%clk 0:01:05]} 71. Be4 {[%clk 0:00:08]}  Rb4 {[%clk 0:01:06]} 72. Bf3 {[%clk 0:00:07]}  Kg7 {[%clk 0:01:06]} 73. Bg4 {[%clk 0:00:07]}  Kf6 {[%clk 0:01:05]} 74. Bc8 {[%clk 0:00:07]}  Rc4 {[%clk 0:01:03]} 75. Bd7 {[%clk 0:00:07]}  Rc3+ {[%clk 0:01:03]} 76. Kg4 {[%clk 0:00:08]}  Rc4+ {[%clk 0:01:04]} 77. Kg3 {[%clk 0:00:08]} 1/2-1/2

[Event "December 5 Early 2023"]
[Site "https://www.chess.com"]
[Date "2023.12.05"]
[Round "11"]
[White "Samunenkov, Ihor"]
[Black "Harutjunyan, Gevorg"]
[Result "0-1"]
[Board "22"]
[TimeControl "180+1"]
[WhiteFideId "14187086"]
[BlackFideId "13300873"]
[WhiteElo "2762"]
[BlackElo "2895"]
[WhiteTeam "UKR"]
[BlackTeam "ARM"]
[WhiteClock "0:00:00"]
[BlackClock "0:01:26"]

1. d4 {[%clk 0:03:00]}  Nf6 {[%clk 0:02:59]} 2. Nf3 {[%clk 0:03:01]}  g6 {[%clk 0:02:59]} 3. Nbd2 {[%clk 0:03:00]}  Bg7 {[%clk 0:03:00]} 4. e4 {[%clk 0:03:00]}  d6 {[%clk 0:03:00]} 5. Be2 {[%clk 0:03:00]}  O-O {[%clk 0:03:01]} 6. O-O {[%clk 0:03:00]}  c5 {[%clk 0:03:02]} 7. c3 {[%clk 0:02:52]}  Nc6 {[%clk 0:02:55]} 8. d5 {[%clk 0:02:44]}  Nb8 {[%clk 0:02:56]} 9. a4 {[%clk 0:02:40]}  e6 {[%clk 0:02:51]} 10. dxe6 {[%clk 0:02:29]}  Bxe6 {[%clk 0:02:51]} 11. Ng5 {[%clk 0:02:19]}  Nc6 {[%clk 0:02:49]} 12. Nxe6 {[%clk 0:02:04]}  fxe6 {[%clk 0:02:50]} 13. Qb3 {[%clk 0:02:04]}  Qd7 {[%clk 0:02:51]} 14. a5 {[%clk 0:01:59]}  d5 {[%clk 0:02:44]} 15. exd5 {[%clk 0:01:58]}  exd5 {[%clk 0:02:44]} 16. Nf3 {[%clk 0:01:48]}  c4 {[%clk 0:02:38]} 17. Qc2 {[%clk 0:01:44]}  Rae8 {[%clk 0:02:34]} 18. Be3 {[%clk 0:01:42]}  Rxe3 {[%clk 0:02:31]} 19. fxe3 {[%clk 0:01:41]}  Ng4 {[%clk 0:02:32]} 20. Rfe1 {[%clk 0:01:16]}  Bh6 {[%clk 0:02:30]} 21. Bf1 {[%clk 0:01:06]}  Bxe3+ {[%clk 0:02:27]} 22. Rxe3 {[%clk 0:01:03]}  Nxe3 {[%clk 0:02:28]} 23. Qd2 {[%clk 0:01:00]}  Nxf1 {[%clk 0:02:13]} 24. Rxf1 {[%clk 0:01:01]}  Nxa5 {[%clk 0:02:12]} 25. Rd1 {[%clk 0:01:01]}  Nc6 {[%clk 0:01:52]} 26. Qxd5+ {[%clk 0:00:58]}  Qxd5 {[%clk 0:01:52]} 27. Rxd5 {[%clk 0:00:59]}  Rd8 {[%clk 0:01:52]} 28. Rxd8+ {[%clk 0:00:37]}  Nxd8 {[%clk 0:01:53]} 29. Ne5 {[%clk 0:00:36]}  b5 {[%clk 0:01:51]} 30. Kf2 {[%clk 0:00:37]}  Kg7 {[%clk 0:01:50]} 31. Ke3 {[%clk 0:00:36]}  Kf6 {[%clk 0:01:47]} 32. Ke4 {[%clk 0:00:33]}  Ke6 {[%clk 0:01:45]} 33. Nf3 {[%clk 0:00:28]}  Kd6 {[%clk 0:01:40]} 34. Ng5 {[%clk 0:00:16]}  h6 {[%clk 0:01:39]} 35. Nf3 {[%clk 0:00:16]}  Ne6 {[%clk 0:01:34]} 36. Ne5 {[%clk 0:00:11]}  Nc5+ {[%clk 0:01:34]} 37. Kd4 {[%clk 0:00:11]}  Na4 {[%clk 0:01:29]} 38. Nxg6 {[%clk 0:00:09]}  Nxb2 {[%clk 0:01:29]} 39. Ke3 {[%clk 0:00:07]}  Na4 {[%clk 0:01:23]} 40. Kd2 {[%clk 0:00:07]}  Nc5 {[%clk 0:01:24]} 41. g4 {[%clk 0:00:06]}  Ne4+ {[%clk 0:01:24]} 42. Kc2 {[%clk 0:00:06]}  a5 {[%clk 0:01:23]} 43. h4 {[%clk 0:00:04]}  b4 {[%clk 0:01:24]} 44. cxb4 {[%clk 0:00:04]}  axb4 {[%clk 0:01:25]} 45. Nf4 {[%clk 0:00:05]}  b3+ {[%clk 0:01:25]} 46. Kb2 {[%clk 0:00:05]}  Kc5 {[%clk 0:01:26]} 47. g5 {[%clk 0:00:02]}  hxg5 {[%clk 0:01:26]} 48. Ne6+ {[%clk 0:00:00]}  Kb4 {[%clk 0:01:26]} 0-1

[Event "December 5 Early 2023"]
[Site "https://www.chess.com"]
[Date "2023.12.05"]
[Round "11"]
[White "Mamedov, Edgar"]
[Black "Baskakov, Egor"]
[Result "1-0"]
[Board "23"]
[TimeControl "180+1"]
[WhiteFideId "13739980"]
[BlackFideId "24197866"]
[WhiteElo "2758"]
[BlackElo "2893"]
[WhiteTeam "KAZ"]
[BlackTeam "RUS"]
[WhiteClock "0:01:15"]
[BlackClock "0:01:18"]

1. d4 {[%clk 0:03:00]}  Nf6 {[%clk 0:02:59]} 2. Bg5 {[%clk 0:03:00]}  e6 {[%clk 0:02:59]} 3. e4 {[%clk 0:02:58]}  Be7 {[%clk 0:02:59]} 4. e5 {[%clk 0:02:55]}  Nd5 {[%clk 0:02:58]} 5. Bxe7 {[%clk 0:02:55]}  Nxe7 {[%clk 0:02:59]} 6. Nf3 {[%clk 0:02:55]}  d6 {[%clk 0:02:59]} 7. Nbd2 {[%clk 0:02:54]}  c5 {[%clk 0:02:59]} 8. exd6 {[%clk 0:02:54]}  Qxd6 {[%clk 0:02:58]} 9. Ne4 {[%clk 0:02:53]}  Qc7 {[%clk 0:02:58]} 10. Nxc5 {[%clk 0:02:47]}  b6 {[%clk 0:02:55]} 11. Ne4 {[%clk 0:02:45]}  Bb7 {[%clk 0:02:54]} 12. Bb5+ {[%clk 0:02:44]}  Nbc6 {[%clk 0:02:54]} 13. O-O {[%clk 0:02:43]}  O-O {[%clk 0:02:54]} 14. c3 {[%clk 0:02:39]}  Rfd8 {[%clk 0:02:53]} 15. Qe2 {[%clk 0:02:36]}  Nd5 {[%clk 0:02:50]} 16. Rfe1 {[%clk 0:02:30]}  a6 {[%clk 0:02:35]} 17. Ba4 {[%clk 0:02:26]}  Rac8 {[%clk 0:02:33]} 18. g3 {[%clk 0:02:23]}  Nce7 {[%clk 0:02:28]} 19. Neg5 {[%clk 0:02:19]}  Nf5 {[%clk 0:02:14]} 20. Bc2 {[%clk 0:02:15]}  Nde7 {[%clk 0:01:53]} 21. Nxf7 {[%clk 0:01:45]}  Kxf7 {[%clk 0:01:42]} 22. Qxe6+ {[%clk 0:01:28]}  Kf8 {[%clk 0:01:43]} 23. Ng5 {[%clk 0:01:27]}  Qc4 {[%clk 0:01:22]} 24. Nxh7+ {[%clk 0:01:23]}  Ke8 {[%clk 0:01:22]} 25. Qxf5 {[%clk 0:01:16]}  Rd7 {[%clk 0:01:18]} 26. Qf8# {[%clk 0:01:15]} 1-0

[Event "December 5 Early 2023"]
[Site "https://www.chess.com"]
[Date "2023.12.05"]
[Round "11"]
[White "Kuzubov, Yuriy"]
[Black "Kozak, Antoni"]
[Result "1-0"]
[Board "25"]
[TimeControl "180+1"]
[WhiteFideId "14112906"]
[BlackFideId "21832030"]
[WhiteElo "2866"]
[BlackElo "2736"]
[WhiteTeam "UKR"]
[BlackTeam "POL"]
[WhiteClock "0:00:17"]
[BlackClock "0:00:00"]

1. d4 {[%clk 0:03:00]}  Nf6 {[%clk 0:02:51]} 2. c4 {[%clk 0:03:01]}  e6 {[%clk 0:02:52]} 3. Nf3 {[%clk 0:03:01]}  d5 {[%clk 0:02:52]} 4. Nc3 {[%clk 0:03:01]}  Ne4 {[%clk 0:02:53]} 5. Qc2 {[%clk 0:02:57]}  Nxc3 {[%clk 0:02:53]} 6. bxc3 {[%clk 0:02:57]}  b6 {[%clk 0:02:35]} 7. e4 {[%clk 0:02:55]}  Be7 {[%clk 0:02:20]} 8. cxd5 {[%clk 0:02:50]}  exd5 {[%clk 0:02:20]} 9. e5 {[%clk 0:02:51]}  c5 {[%clk 0:02:17]} 10. Bd3 {[%clk 0:02:35]}  c4 {[%clk 0:02:09]} 11. Be2 {[%clk 0:02:31]}  g6 {[%clk 0:02:09]} 12. Nd2 {[%clk 0:02:27]}  Bf5 {[%clk 0:02:08]} 13. Qb2 {[%clk 0:02:23]}  h5 {[%clk 0:02:07]} 14. Nf1 {[%clk 0:02:23]}  h4 {[%clk 0:02:03]} 15. Ne3 {[%clk 0:02:23]}  Be6 {[%clk 0:02:03]} 16. O-O {[%clk 0:02:19]}  Nc6 {[%clk 0:02:01]} 17. f4 {[%clk 0:02:16]}  Qd7 {[%clk 0:01:59]} 18. Bf3 {[%clk 0:02:12]}  O-O-O {[%clk 0:01:52]} 19. a4 {[%clk 0:01:47]}  Na5 {[%clk 0:01:47]} 20. Qb5 {[%clk 0:01:40]}  Qb7 {[%clk 0:01:28]} 21. Rb1 {[%clk 0:01:31]}  f5 {[%clk 0:01:06]} 22. Bd2 {[%clk 0:01:25]}  Rhg8 {[%clk 0:00:49]} 23. Qxa5 {[%clk 0:01:11]}  bxa5 {[%clk 0:00:48]} 24. Rxb7 {[%clk 0:01:12]}  Kxb7 {[%clk 0:00:49]} 25. Nxc4 {[%clk 0:01:12]}  Ka6 {[%clk 0:00:45]} 26. Ne3 {[%clk 0:01:09]}  Rb8 {[%clk 0:00:40]} 27. Nxd5 {[%clk 0:00:57]}  Bxd5 {[%clk 0:00:34]} 28. Bxd5 {[%clk 0:00:58]}  Rgd8 {[%clk 0:00:32]} 29. Bc4+ {[%clk 0:00:41]}  Kb6 {[%clk 0:00:31]} 30. Bf7 {[%clk 0:00:40]}  Kc6 {[%clk 0:00:30]} 31. Bxg6 {[%clk 0:00:32]}  Rb2 {[%clk 0:00:29]} 32. Rf2 {[%clk 0:00:31]}  Rb1+ {[%clk 0:00:28]} 33. Rf1 {[%clk 0:00:31]}  Rb2 {[%clk 0:00:29]} 34. Rd1 {[%clk 0:00:30]}  h3 {[%clk 0:00:15]} 35. Bxf5 {[%clk 0:00:26]}  hxg2 {[%clk 0:00:14]} 36. d5+ {[%clk 0:00:24]}  Rxd5 {[%clk 0:00:07]} 37. Be4 {[%clk 0:00:22]}  Bc5+ {[%clk 0:00:08]} 38. Kxg2 {[%clk 0:00:20]}  Be3 {[%clk 0:00:08]} 39. Kf3 {[%clk 0:00:17]}  Bxd2 {[%clk 0:00:09]} 40. c4 {[%clk 0:00:17]}  Kc5 {[%clk 0:00:06]} 41. cxd5 {[%clk 0:00:18]}  Rb3+ {[%clk 0:00:06]} 42. Kg4 {[%clk 0:00:17]}  Be3 {[%clk 0:00:05]} 43. d6 {[%clk 0:00:18]}  Rb4 {[%clk 0:00:05]} 44. Kf5 {[%clk 0:00:17]}  Rb8 {[%clk 0:00:03]} 45. d7 {[%clk 0:00:17]}  Rf8+ {[%clk 0:00:00]} 46. Ke6 {[%clk 0:00:17]} 1-0